bitfinex/quotes_ETHUSD_20240715
["timestamp","ask_amount","ask_price","bid_price","bid_amount"]
[1721072788658,6.220579,3406.0,3405.9,1.9911]
[1721072788819,2.93634,3405.6,3404.7,3.0]
[1721072789027,2.93634,3405.6,3404.7,4.41318047]
[1721072789223,2.93634,3405.6,3404.6,0.1209687]
[1721072790866,2.93644,3405.5,3404.7,2.3106]
[1721072791069,2.93678,3405.1,3404.7,2.3106]
[1721072791235,0.55,3405.0,3404.7,2.3106]
[1721072791639,2.937,3404.9,3404.7,2.3106]
[1721072791974,2.93661,3405.3,3404.7,2.3106]
[1721072792130,0.587305,3405.3,3404.7,2.3106]
[1721072792331,2.93687,3405.0,3404.7,2.3106]
[1721072794544,2.9367,3405.2,3404.7,2.3106]
[1721072794883,7.3,3405.8,3404.7,2.3106]
[1721072795187,2.93608,3405.9,3405.0,2.3762]
[1721072795347,2.93627,3405.7,3405.0,2.3762]
[1721072795671,7.3,3406.7,3405.0,2.3762]
[1721072795872,2.93613,3405.9,3405.0,2.3762]
[1721072796290,2.93609,3405.9,3405.0,2.3762]
[1721072796781,3.089,3406.6,3405.0,2.3762]
[1721072796995,2.93609,3405.9,3405.0,2.907517]
[1721072797149,2.93609,3405.9,3405.0,2.3762]
[1721072797346,2.93634,3405.6,3405.0,2.3762]
[1721072798196,2.93617,3405.8,3405.0,2.3762]
[1721072798197,2.9363,3405.7,3405.0,2.3762]
[1721072798353,2.93634,3405.6,3405.0,2.3762]
[1721072799347,2.93627,3405.7,3405.0,2.3762]
[1721072799548,2.93635,3405.6,3405.0,2.3762]
[1721072800339,2.93626,3405.7,3405.0,2.3762]
[1721072800783,2.93617,3405.8,3405.0,2.61382]
[1721072801080,2.93625,3405.7,3405.0,2.61382]
[1721072801494,2.93637,3405.6,3405.0,2.3762]
[1721072801846,2.93611,3405.9,3405.0,2.3762]
[1721072802046,0.55,3405.8,3405.0,2.3762]
[1721072802371,2.93634,3405.6,3405.0,2.3762]
[1721072802772,2.93626,3405.7,3405.0,2.3762]
[1721072803398,2.93617,3405.8,3405.0,2.61382]
[1721072803967,2.93599,3406.0,3405.0,2.61382]
[1721072804406,2.93609,3405.9,3405.0,2.61382]
[1721072804694,2.93617,3405.8,3405.0,2.61382]
[1721072804856,2.93637,3405.6,3405.0,2.3762]
[1721072806311,2.93642,3405.5,3405.0,2.3762]
[1721072808592,2.93677,3405.1,3405.0,2.3762]
[1721072809216,5.87354,3405.1,3405.0,2.3762]
[1721072810039,5.87354,3405.1,3404.6,0.1209687]
[1721072810040,2.93711,3404.7,3404.6,0.1209687]
[1721072810633,0.55,3405.1,3404.6,0.1209687]
[1721072810634,2.93677,3405.1,3404.6,0.1209687]
[1721072811264,2.93707,3404.8,3404.6,0.1209687]
[1721072811613,2.93705,3404.8,3404.6,0.1209687]
[1721072811918,2.9369,3405.0,3404.6,0.1209687]
[1721072812123,2.93695,3404.9,3404.6,0.1209687]
[1721072814223,1.53699812,3405.8,3404.6,0.1209687]
[1721072814549,2.93636,3405.6,3404.7,2.4202]
[1721072814736,2.93642,3405.5,3404.7,2.4202]
[1721072814943,2.93631,3405.7,3404.7,2.4202]
[1721072815113,2.93641,3405.6,3404.8,0.54784487]
[1721072815559,2.93626,3405.7,3404.9,0.05873206]
[1721072816154,2.93641,3405.6,3404.8,0.54784487]
[1721072816360,2.93641,3405.6,3404.9,0.30890136]
[1721072816846,2.93623,3405.8,3404.9,0.30890136]
[1721072817049,2.93623,3405.8,3404.8,0.54784487]
[1721072817277,2.93643,3405.5,3404.8,0.54784487]
[1721072818115,2.93626,3405.7,3404.8,0.54784487]
[1721072818541,4.47332556,3406.2,3404.8,0.54784487]
[1721072818542,2.9359,3406.2,3404.9,2.3121]
[1721072818744,2.9359,3406.2,3404.8,0.54784487]
[1721072818745,2.9359,3406.2,3405.0,2.37082417]
[1721072818946,2.93522,3406.9,3405.2,2.4002]
[1721072818947,2.93566,3406.4,3405.2,2.4002]
[1721072819189,2.93566,3406.4,3405.3,2.4002]
[1721072819482,2.93547,3406.6,3405.6,2.4002]
[1721072820091,7.3,3407.1,3405.6,2.4002]
[1721072820092,2.93539,3406.7,3405.6,2.4002]
[1721072820401,7.3,3407.1,3405.7,2.416]
[1721072820402,2.93536,3406.8,3405.7,2.416]
[1721072820547,2.93536,3406.8,3405.8,0.535241]
[1721072820747,2.93567,3406.4,3405.7,2.416]
[1721072820983,10.23509,3407.1,3405.7,2.416]
[1721072820984,2.93589,3406.2,3405.7,2.416]
[1721072821495,2.93565,3406.4,3405.7,2.416]
[1721072821700,1.53712501,3406.8,3405.7,2.416]
[1721072821990,2.93592,3406.1,3405.7,2.416]
[1721072822154,2.93583,3406.2,3405.7,2.416]
[1721072822898,1.0126125,3406.7,3405.7,2.416]
[1721072823106,2.93565,3406.4,3405.7,2.416]
[1721072823284,1.0126125,3406.7,3405.7,2.416]
[1721072823285,2.9355,3406.6,3405.7,2.416]
[1721072823596,2.93574,3406.3,3405.7,2.416]
[1721072824661,2.93565,3406.4,3405.7,2.416]
[1721072825293,2.93583,3406.2,3405.7,2.416]
[1721072825658,2.93565,3406.4,3405.7,2.416]
[1721072826724,2.93574,3406.3,3405.7,2.416]
[1721072826878,2.93582,3406.2,3405.7,2.416]
[1721072827087,2.93592,3406.1,3405.7,2.416]
[1721072827395,2.93566,3406.4,3405.7,2.416]
[1721072827396,2.93579,3406.3,3405.7,2.416]
[1721072827628,2.93566,3406.4,3405.7,2.416]
[1721072828011,0.54852535,3406.6,3405.7,2.416]
[1721072828012,3.48405535,3406.6,3405.7,2.416]
[1721072828217,2.93531,3406.8,3405.7,2.951237]
[1721072828416,7.3,3407.1,3405.9,2.4741]
[1721072828703,2.93505,3407.1,3406.1,2.4741]
[1721072828888,2.93472,3407.5,3406.1,2.4741]
[1721072829094,2.93472,3407.5,3406.3,2.93572]
[1721072829726,2.93472,3407.5,3405.8,4.53131316]
[1721072829727,1.53732009,3406.6,3405.7,0.61445697]
[1721072830021,1.53732009,3406.6,3405.4,1.22891394]
[1721072830022,2.93666,3405.3,3403.8,7.4]
[1721072830241,3.089,3405.4,3403.3,0.61445697]
[1721072830381,3.089,3405.4,3403.3,2.93831]
[1721072830382,2.93711,3404.7,3403.3,2.93831]
[1721072830722,4.074513,3404.7,3403.3,2.93831]
[1721072830881,4.074513,3404.7,3403.2,3.385]
[1721072831102,4.074513,3404.7,3403.0,2.93856]
[1721072831296,7.011623,3404.7,3402.8,1.53233978]
[1721072831494,7.011623,3404.7,3402.2,1.22891394]
[1721072831495,3.089,3403.9,3402.3,1.53233978]
[1721072831696,3.089,3403.9,3401.7,2.0426389]
[1721072831697,2.9385,3403.1,3401.9,1.53233978]
[1721072831944,1.84261177,3404.0,3401.9,0.05877709]
[1721072832142,2.9385,3403.1,3401.7,1.53280659]
[1721072832349,2.93868,3402.9,3401.8,1.02190378]
[1721072832533,3.48879,3402.8,3401.3,2.14724471]
[1721072832854,3.48879,3402.8,3400.9,2.3413]
[1721072832855,3.089,3402.6,3400.9,2.3413]
[1721072833144,2.93937,3402.1,3400.9,2.3413]
[1721072833463,0.9139,3402.5,3400.9,2.3413]
[1721072833464,2.93922,3402.3,3400.9,2.3413]
[1721072833595,2.93954,3401.9,3400.9,2.3413]
[1721072833797,0.55,3402.0,3400.9,2.3413]
[1721072833798,3.48963,3401.8,3400.9,2.3413]
[1721072834001,3.48978,3401.7,3400.9,2.3413]
[1721072834296,5.8801,3401.4,3400.9,2.3413]
[1721072834546,5.8801,3401.4,3400.1,2.3862]
[1721072834547,0.55,3401.3,3400.1,2.3862]
[1721072835209,0.55,3401.3,3399.3,2.94177]
[1721072835210,0.55,3401.3,3399.4,2.2723]
[1721072836268,0.55,3401.3,3401.2,8.7e-06]
[1721072836482,3.49005,3401.3,3401.2,8.7e-06]
[1721072836777,2.93983,3401.6,3401.2,8.7e-06]
[1721072836778,2.93981,3401.6,3401.2,8.7e-06]
[1721072836975,2.93947,3402.0,3401.2,8.7e-06]
[1721072837134,2.93927,3402.2,3401.2,8.7e-06]
[1721072837347,2.93903,3402.5,3401.2,8.7e-06]
[1721072837564,0.30718324,3403.0,3401.2,8.7e-06]
[1721072837764,2.93893,3402.6,3401.2,8.7e-06]
[1721072837967,3.385,3403.3,3401.2,8.7e-06]
[1721072837968,2.93876,3402.8,3401.2,8.7e-06]
[1721072838185,2.93846,3403.2,3401.3,2.2898]
[1721072838337,2.93824,3403.4,3402.0,2.2898]
[1721072838669,0.49316118,3403.9,3402.0,2.2898]
[1721072838670,2.9386,3403.0,3402.0,2.2898]
[1721072838871,2.93835,3403.3,3402.0,2.2898]
[1721072839331,2.93815,3403.5,3402.0,2.2898]
[1721072839681,2.93929,3402.2,3402.0,2.2898]
[1721072839979,2.93929,3402.2,3401.2,8.7e-06]
[1721072839980,2.93988,3401.5,3401.2,8.7e-06]
[1721072840469,2.94005,3401.3,3401.2,8.7e-06]
[1721072840849,7.073093,3401.3,3401.2,8.7e-06]
[1721072841574,2.9412,3400.0,3399.8,2.3238]
[1721072842084,2.94126,3399.9,3399.8,2.3238]
[1721072842374,2.94126,3399.9,3399.2,2.4006875]
[1721072842375,3.49126,3399.9,3399.2,2.4006875]
[1721072842539,5.94015,3401.2,3399.2,2.4006875]
[1721072842540,2.94117,3400.1,3399.2,2.4006875]
[1721072842876,5.94015,3401.2,3399.2,2.64075625]
[1721072842877,2.94092,3400.3,3399.2,2.64075625]
[1721072843450,2.9405,3400.8,3399.4,2.94161]
[1721072843675,1.192993,3401.3,3399.4,2.94161]
[1721072843676,2.94032,3401.0,3399.5,2.94158]
[1721072843879,2.94051,3400.8,3399.2,2.64075625]
[1721072844220,0.55,3400.7,3399.6,2.94149]
[1721072844397,4.133063,3401.3,3399.3,3.0]
[1721072844398,2.94007,3401.3,3399.9,2.3477]
[1721072844715,2.93982,3401.6,3400.1,2.94101]
[1721072844893,2.93907,3402.5,3400.1,2.94101]
[1721072844894,2.93924,3402.3,3400.2,2.941]
[1721072845062,0.45383883,3402.7,3400.2,2.941]
[1721072845063,2.93944,3402.1,3400.2,2.941]
[1721072845264,2.93916,3402.4,3400.3,0.05880877]
[1721072845463,2.93916,3402.4,3400.6,2.94063]
[1721072845464,2.9393,3402.2,3400.6,2.94063]
[1721072845662,2.93916,3402.4,3400.6,2.94063]
[1721072845899,2.93889,3402.7,3400.7,2.4878]
[1721072846102,2.93846,3403.2,3400.8,2.4164]
[1721072846301,2.93772,3404.0,3401.3,2.4164]
[1721072846302,2.93867,3402.9,3401.3,2.4164]
[1721072846505,2.93867,3402.9,3401.4,0.59443357]
[1721072846506,3.232537,3402.9,3401.4,0.59443357]
[1721072846668,2.93902,3402.5,3401.4,0.535645]
[1721072846866,0.293867,3402.9,3401.3,2.4164]
[1721072846867,2.93938,3402.1,3401.3,2.4164]
[1721072847269,2.93969,3401.8,3401.3,2.4164]
[1721072848311,2.93945,3402.0,3401.3,2.4164]
[1721072848312,2.9396,3401.9,3401.3,2.4164]
[1721072848470,0.55,3401.8,3401.3,2.4164]
[1721072849010,2.93986,3401.6,3401.3,2.4164]
[1721072849523,2.94005,3401.3,3400.6,9.8603]
[1721072849673,0.55,3401.2,3400.6,2.4603]
[1721072849870,3.49015,3401.2,3400.6,2.4603]
[1721072850071,2.93956,3401.9,3400.6,5.40092]
[1721072850275,2.93928,3402.2,3400.6,5.40092]
[1721072850276,2.93964,3401.8,3400.6,5.40092]
[1721072850581,0.55,3401.7,3400.7,0.540092]
[1721072850781,2.93989,3401.5,3400.6,2.4603]
[1721072850979,2.94014,3401.2,3400.6,2.4603]
[1721072851220,2.94032,3401.0,3400.6,2.4603]
[1721072851384,2.94023,3401.1,3400.0,2.3202]
[1721072851724,0.55,3401.4,3400.0,2.3202]
[1721072851725,3.49039,3401.0,3400.0,2.3202]
[1721072851875,0.349039,3401.0,3400.0,2.3202]
[1721072852072,0.55,3401.4,3400.0,2.3202]
[1721072852073,0.55,3400.9,3400.0,2.3202]
[1721072852380,7.3,3402.3,3400.3,2.9409]
[1721072852715,2.93989,3401.5,3400.1,2.94101]
[1721072852872,2.93979,3401.6,3400.1,2.94101]
[1721072853317,2.94005,3401.3,3400.1,2.94101]
[1721072853521,2.93955,3401.9,3400.4,2.94081]
[1721072853804,2.93981,3401.6,3400.5,2.3202]
[1721072854019,3.0,3402.4,3400.5,5.2609]
[1721072854020,2.93953,3401.9,3400.5,5.2609]
[1721072854185,2.93973,3401.7,3400.5,5.2609]
[1721072854390,3.089,3402.3,3400.6,2.94063]
[1721072854701,2.93954,3401.9,3400.7,0.526083]
[1721072855013,2.9397,3401.7,3400.7,0.526083]
[1721072855212,2.93962,3401.8,3400.6,2.94064]
[1721072855428,2.93946,3402.0,3400.7,2.94056]
[1721072855718,2.93937,3402.1,3400.7,5.88112]
[1721072855892,2.93937,3402.1,3400.5,2.3202]
[1721072855893,2.93937,3402.1,3400.8,2.94045]
[1721072856076,4.00889241,3402.2,3400.9,2.94037]
[1721072856276,4.00889241,3402.2,3401.0,0.588093]
[1721072856473,2.93936,3402.1,3400.5,2.3202]
[1721072856721,3.089,3402.2,3400.5,2.3202]
[1721072856876,0.30720178,3403.0,3399.7,0.294149]
[1721072856877,2.93878,3402.8,3401.5,2.289]
[1721072857231,2.93919,3402.3,3401.5,2.289]
[1721072857377,2.9391,3402.4,3401.5,2.289]
[1721072857577,2.93925,3402.3,3401.5,2.5179]
[1721072857890,2.93866,3402.9,3401.5,2.289]
[1721072857891,2.93952,3402.0,3401.5,2.289]
[1721072858226,2.93956,3401.9,3401.5,2.289]
[1721072858374,3.48963,3401.8,3401.5,2.289]
[1721072858690,2.93963,3401.8,3401.5,2.289]
[1721072858904,2.93908,3402.5,3401.5,2.289]
[1721072859109,2.93907,3402.5,3401.5,2.289]
[1721072859492,2.9391,3402.4,3401.5,2.289]
[1721072859694,2.93847,3403.2,3401.5,2.289]
[1721072859695,2.93902,3402.5,3401.5,2.289]
[1721072859935,2.93921,3402.3,3401.5,2.289]
[1721072860237,2.93902,3402.5,3401.5,2.289]
[1721072860388,4.076887,3402.4,3401.5,2.289]
[1721072860954,2.93926,3402.3,3401.5,2.289]
[1721072861238,2.93939,3402.1,3401.5,2.289]
[1721072861729,4.076887,3402.4,3401.5,2.289]
[1721072861730,2.93923,3402.3,3401.5,2.289]
[1721072861947,2.93791,3403.8,3401.5,2.289]
[1721072861948,2.93893,3402.6,3401.5,2.289]
[1721072862237,2.93876,3402.8,3401.5,2.289]
[1721072862436,2.93859,3403.0,3401.8,2.9396]
[1721072862592,2.93845,3403.2,3401.9,5.66202878]
[1721072862938,2.93845,3403.2,3402.0,0.05877834]
[1721072863096,2.93845,3403.2,3402.0,2.99821834]
[1721072863300,2.93779,3404.0,3402.0,2.93944]
[1721072863301,2.9384,3403.3,3402.0,2.93944]
[1721072863722,2.93856,3403.1,3401.9,5.66203878]
[1721072864038,2.93856,3403.1,3402.0,0.86017388]
[1721072864199,2.93834,3403.3,3402.2,2.93926]
[1721072864401,2.93817,3403.5,3402.3,2.2853]
[1721072864646,2.93802,3403.7,3402.4,2.2853]
[1721072864948,0.49316118,3403.9,3402.4,2.2853]
[1721072864949,2.93824,3403.4,3402.4,2.2853]
[1721072865152,0.49316118,3403.9,3402.5,0.22853]
[1721072865434,0.49316118,3403.9,3402.4,2.2853]
[1721072865435,2.93845,3403.2,3402.4,2.2853]
[1721072865592,7.29219889,3404.3,3402.4,2.2853]
[1721072865593,2.93822,3403.5,3402.4,2.2853]
[1721072865797,2.93839,3403.3,3402.4,2.2853]
[1721072866047,2.93815,3403.5,3402.4,2.2853]
[1721072866247,3.48824,3403.4,3402.4,2.2853]
[1721072866459,2.93834,3403.3,3402.5,0.522456]
[1721072866612,0.55,3403.2,3402.5,0.522456]
[1721072866807,2.93776,3404.0,3402.5,0.522456]
[1721072867015,2.93786,3403.9,3402.7,2.251]
[1721072867355,2.93755,3404.2,3402.4,2.93909]
[1721072867356,2.93709,3404.8,3403.1,2.251]
[1721072867514,2.93731,3404.5,3403.2,0.05876085]
[1721072867715,2.93755,3404.2,3403.2,0.05876085]
[1721072867948,2.93747,3404.3,3403.1,2.251]
[1721072868116,2.93758,3404.2,3403.1,5.41458]
[1721072868318,3.524948,3404.3,3403.1,2.4761]
[1721072868709,2.93773,3404.0,3403.1,2.4761]
[1721072868916,2.93773,3404.0,3403.1,2.251]
[1721072869242,2.93759,3404.2,3403.1,2.251]
[1721072869561,0.587478,3404.3,3403.1,2.251]
[1721072869764,3.0,3405.0,3403.1,2.251]
[1721072869765,6.02595,3404.9,3403.1,2.251]
[1721072869916,2.93733,3404.5,3403.1,5.18949]
[1721072870111,2.93716,3404.7,3403.3,5.19914]
[1721072870364,2.93716,3404.7,3403.5,2.2609]
[1721072870562,2.93716,3404.7,3403.6,2.93805]
[1721072870715,0.293716,3404.6,3403.7,0.05875076]
[1721072871642,0.293716,3404.6,3403.6,2.93806]
[1721072871842,3.230926,3404.6,3403.5,2.2609]
[1721072872380,2.93754,3404.3,3403.5,2.2609]
[1721072872584,2.93733,3404.5,3403.5,2.2609]
[1721072872750,0.55,3404.4,3403.5,2.2609]
[1721072873074,2.93747,3404.3,3403.5,2.2609]
[1721072873280,0.55,3404.4,3403.5,2.2609]
[1721072873855,2.93747,3404.3,3403.5,2.2609]
[1721072874296,3.2603946,3404.5,3403.5,2.2609]
[1721072874297,0.3231046,3404.5,3403.5,2.2609]
[1721072874460,10.38119889,3405.4,3403.6,3.457951]
[1721072874461,2.9372,3404.6,3403.6,3.457951]
[1721072875579,2.93733,3404.5,3403.5,2.2609]
[1721072875898,2.93733,3404.5,3402.8,2.14193267]
[1721072875899,3.089,3404.3,3402.8,2.498]
[1721072876068,5.22535,3404.9,3402.8,2.498]
[1721072876069,2.93832,3403.3,3402.8,2.498]
[1721072876260,0.55,3403.2,3402.8,2.498]
[1721072876805,2.93816,3403.5,3402.8,2.498]
[1721072876962,0.55,3403.4,3402.8,2.498]
[1721072877392,3.00007286,3407.6,3402.8,2.498]
[1721072877393,2.93781,3403.9,3402.8,2.498]
[1721072877617,2.93798,3403.7,3402.8,2.498]
[1721072878163,0.55,3403.8,3402.8,2.498]
[1721072878164,2.93826,3403.4,3402.8,2.498]
[1721072878560,2.93821,3403.5,3402.8,2.498]
[1721072878758,2.93824,3403.4,3402.8,2.498]
[1721072879198,0.55,3403.8,3402.8,2.498]
[1721072879199,3.48791,3403.8,3402.8,2.498]
[1721072879377,2.93815,3403.5,3402.8,2.498]
[1721072879572,2.93824,3403.4,3402.8,2.498]
[1721072879780,2.93815,3403.5,3402.8,2.498]
[1721072880291,2.93769,3404.1,3402.8,5.43672]
[1721072880471,8.60894,3405.4,3402.8,5.43672]
[1721072880472,2.93781,3403.9,3402.8,5.43672]
[1721072880964,2.93741,3404.4,3403.1,2.428]
[1721072881168,0.46078943,3404.7,3403.1,2.428]
[1721072881362,2.93761,3404.2,3403.1,2.428]
[1721072881567,2.93799,3403.7,3403.1,2.428]
[1721072881987,2.93813,3403.6,3403.1,2.428]
[1721072882497,2.93815,3403.5,3403.1,2.428]
[1721072882865,3.0,3404.5,3403.1,2.428]
[1721072883066,2.93709,3404.8,3403.5,2.93807]
[1721072883269,2.93709,3404.8,3403.3,2.41]
[1721072883270,2.93725,3404.6,3403.3,2.41]
[1721072883510,2.93725,3404.6,3403.5,2.93814]
[1721072883711,2.93709,3404.8,3403.5,2.93814]
[1721072883907,0.46069882,3405.0,3403.8,2.41]
[1721072884121,2.93711,3404.7,3403.8,2.41]
[1721072884971,3.089,3404.9,3403.8,2.41]
[1721072885184,2.93741,3404.4,3403.8,2.41]
[1721072885384,3.27662988,3405.0,3403.8,2.41]
[1721072885385,2.93713,3404.7,3403.8,2.41]
[1721072885619,2.93732,3404.5,3403.8,2.41]
[1721072885918,2.93713,3404.7,3403.8,2.41]
[1721072885919,3.48695,3404.9,3403.8,2.651]
[1721072886081,0.46064207,3405.6,3403.8,2.651]
[1721072886082,0.46064207,3405.6,3403.9,0.05874598]
[1721072886283,2.93664,3405.3,3404.2,2.41]
[1721072886685,3.089,3405.9,3404.2,2.41]
[1721072886686,2.93669,3405.2,3404.2,2.41]
[1721072887036,2.93678,3405.1,3404.2,2.41]
[1721072887179,0.293678,3405.0,3404.2,2.41]
[1721072887384,2.93684,3405.1,3404.2,2.41]
[1721072887687,2.93695,3404.9,3404.2,2.41]
[1721072888005,2.93683,3405.1,3404.2,2.41]
[1721072888413,0.55,3405.0,3404.2,2.41]
[1721072888580,2.93694,3404.9,3404.2,2.41]
[1721072888779,2.93657,3405.4,3404.2,2.41]
[1721072889097,2.93668,3405.2,3404.2,3.238539]
[1721072889605,1.137308,3405.3,3404.2,3.238539]
[1721072889978,2.93679,3405.1,3404.2,3.238539]
[1721072890226,1.137308,3405.3,3404.2,3.238539]
[1721072890227,2.93692,3405.0,3404.2,3.238539]
[1721072890386,2.93709,3404.8,3404.2,2.41]
[1721072890583,2.93721,3404.6,3404.2,2.41]
[1721072891096,2.93729,3404.5,3404.2,2.41]
[1721072891613,2.93717,3404.7,3404.2,2.41]
[1721072891784,0.58365159,3404.7,3404.2,2.41]
[1721072891990,0.58365159,3404.7,3403.1,2.4666]
[1721072891991,2.93756,3404.2,3403.1,2.4666]
[1721072892186,2.93772,3404.0,3403.1,2.4666]
[1721072892395,2.93791,3403.8,3403.1,2.4666]
[1721072892594,2.93734,3404.5,3403.1,2.4666]
[1721072892595,5.87516,3404.2,3403.1,2.4666]
[1721072892828,3.48763,3404.1,3403.2,0.540526]
[1721072893034,2.9379,3403.8,3403.1,2.4666]
[1721072893328,2.93786,3403.9,3403.1,2.4666]
[1721072893623,0.55,3404.0,3403.1,2.4666]
[1721072893794,0.58365159,3404.7,3402.1,2.3957]
[1721072893795,2.93841,3403.2,3402.1,2.3957]
[1721072893996,2.93853,3403.1,3402.1,2.3957]
[1721072894204,2.93859,3403.0,3402.2,0.23957]
[1721072894780,2.93841,3403.2,3402.2,0.23957]
[1721072895028,2.93832,3403.3,3402.3,2.93915]
[1721072895682,2.93832,3403.3,3402.2,0.23957]
[1721072896183,0.55,3403.2,3402.2,0.23957]
[1721072896386,3.0,3403.9,3402.3,0.557471]
[1721072896387,2.93824,3403.4,3402.3,0.557471]
[1721072896582,2.93832,3403.3,3402.3,3.496611]
[1721072896813,2.9386,3403.0,3402.3,0.557471]
[1721072897009,2.9386,3403.0,3402.2,0.23957]
[1721072897688,2.93868,3402.9,3402.2,0.23957]
[1721072898289,2.93875,3402.8,3402.1,2.3957]
[1721072898814,2.93853,3403.1,3402.1,2.3957]
[1721072898989,0.55,3403.4,3402.1,5.33499]
[1721072898990,2.93832,3403.3,3402.1,5.33499]
[1721072899338,3.0,3403.9,3402.8,2.4174]
[1721072899501,3.0,3403.9,3403.0,2.93856]
[1721072899706,2.93772,3404.0,3403.0,2.93856]
[1721072899892,2.93772,3404.0,3402.9,0.58014]
[1721072900274,3.089,3404.9,3402.9,0.58014]
[1721072900275,2.93702,3404.9,3402.9,6.51874]
[1721072900421,2.29692904,3406.0,3403.4,2.4157]
[1721072900422,2.9371,3404.8,3403.4,2.4157]
[1721072900742,2.93694,3404.9,3403.8,2.4157]
[1721072901333,2.93677,3405.1,3403.9,2.9965129]
[1721072901521,2.93677,3405.1,3403.9,2.93777]
[1721072901722,2.9366,3405.3,3404.0,0.05873639]
[1721072901906,2.93644,3405.5,3404.2,5.24853]
[1721072901907,2.93668,3405.2,3404.2,5.24853]
[1721072902109,2.93668,3405.2,3404.2,2.311]
[1721072902309,2.93652,3405.4,3404.2,2.311]
[1721072902811,2.2024,3405.0,3404.4,2.93735]
[1721072903259,2.2024,3405.0,3404.2,2.311]
[1721072903260,2.2024,3405.0,3404.2,5.24846]
[1721072903408,2.2024,3405.0,3404.3,0.84858106]
[1721072903813,2.2024,3405.0,3404.2,2.311]
[1721072904309,2.2024,3405.0,3404.3,2.93741]
[1721072904509,2.2024,3405.0,3404.2,2.311]
[1721072904510,2.93713,3404.7,3404.2,2.311]
[1721072905058,2.93734,3404.5,3404.2,2.311]
[1721072905346,2.2024,3405.0,3404.2,2.311]
[1721072905347,2.93738,3404.4,3404.2,2.311]
[1721072905550,2.93746,3404.3,3404.2,2.311]
[1721072905856,2.9377,3404.1,3403.0,5.25358]
[1721072906019,2.9377,3404.1,3403.1,2.93849]
[1721072906632,2.9377,3404.1,3403.0,5.25356]
[1721072906833,5.2914,3405.0,3402.9,0.58014]
[1721072906834,2.93717,3404.7,3403.2,2.3571]
[1721072907037,2.93696,3404.9,3403.7,2.93789]
[1721072907223,2.2024,3405.0,3403.7,2.93789]
[1721072907224,2.93703,3404.8,3403.7,2.93789]
[1721072907850,2.93694,3404.9,3403.8,2.93786]
[1721072908035,2.2024,3405.0,3404.0,2.3571]
[1721072908036,5.13926,3405.0,3404.0,2.3571]
[1721072908369,2.93701,3404.9,3404.0,2.3571]
[1721072908578,2.2024,3405.0,3404.0,2.386599]
[1721072909138,5.13927,3405.0,3404.0,2.386599]
[1721072909672,2.93695,3404.9,3404.0,2.386599]
[1721072909841,2.2024,3405.0,3404.0,5.324299]
[1721072910635,2.2024,3405.0,3404.1,2.9376]
[1721072910842,2.2024,3405.0,3404.3,2.9374]
[1721072911726,2.2024,3405.0,3404.4,2.2979]
[1721072912328,2.2024,3405.0,3404.4,5.23525]
[1721072913227,2.2024,3405.0,3404.4,2.2979]
[1721072913537,3.089,3406.3,3404.4,2.2979]
[1721072913538,2.93489,3407.3,3405.0,3.089]
[1721072913744,1.84105575,3408.5,3405.0,3.089]
[1721072913745,6.78965313,3408.9,3406.5,9.1875]
[1721072913964,2.93332,3409.1,3408.4,3.384]
[1721072914261,2.93332,3409.1,3406.8,4.412]
[1721072914262,1.84105575,3409.7,3408.9,3.384]
[1721072914263,2.93282,3409.7,3408.9,3.384]
[1721072914473,2.93282,3409.7,3408.5,3.44267698]
[1721072914474,2.93267,3409.9,3409.6,3.384]
[1721072914622,2.93253,3410.1,3409.6,3.384]
[1721072914820,2.93273,3409.8,3409.6,3.384]
[1721072915078,2.93222,3410.4,3409.6,3.384]
[1721072915285,2.4428687,3411.5,3410.3,3.384]
[1721072915286,0.1209687,3411.5,3410.3,3.384]
[1721072915586,0.1209687,3411.5,3411.1,3.384]
[1721072915883,0.1209687,3411.5,3410.4,3.0]
[1721072915884,0.1209687,3411.5,3410.6,3.384]
[1721072916199,0.1209687,3411.5,3411.0,3.384]
[1721072916398,0.1209687,3411.5,3410.3,3.539]
[1721072916589,0.1209687,3411.5,3409.6,5.35231]
[1721072916590,2.93143,3411.3,3410.4,3.0]
[1721072916891,2.93143,3411.3,3409.6,5.9585]
[1721072916892,0.2944,3410.9,3409.7,35.0]
[1721072917046,2.9317,3411.0,3409.8,3.0]
[1721072917474,2.93179,3410.9,3409.8,3.0]
[1721072917692,3.52996387,3411.2,3409.8,3.0]
[1721072918209,2.9318,3410.9,3409.8,3.0]
[1721072918486,0.29318,3410.8,3409.8,3.0]
[1721072918693,3.52996387,3411.2,3409.8,5.93272]
[1721072918846,2.9317,3411.0,3409.7,3.0]
[1721072919047,0.55,3410.9,3409.7,5.93279]
[1721072919397,3.0522787,3411.5,3409.8,35.05864004]
[1721072919398,0.1209687,3411.5,3409.8,35.05864004]
[1721072919695,0.1209687,3411.5,3410.1,2.93245]
[1721072919848,0.42617657,3411.5,3410.3,2.93226]
[1721072920045,0.42617657,3411.5,3410.5,2.93207]
[1721072920282,0.42617657,3411.5,3410.6,38.0]
[1721072920590,0.42617657,3411.5,3410.6,35.0]
[1721072920747,0.1209687,3411.5,3410.9,2.93174]
[1721072921250,0.1209687,3411.5,3410.8,2.4516]
[1721072924181,0.1209687,3411.5,3410.7,3.0]